Workbook

Sheet 资产负债表
A1: 资 产 负 债 表
A3: 编制单位:湖南江冶机电科技股份有限公司 | E3: 2023-12-31 | H3: 单位：元
A4: 资 产 | B4: 行次 | C4: 年初数 | D4: 期末数 | E4: 负债和所有者权益 | F4: 行次 | G4: 年初数 | H4: 期末数
A5: 流动资产： | E5: 流动负债：
A6: 货币资金 | B6: 1 | C6: 30,517,545.09 | D6: 9,214,075.97 | E6: 短期借款 | F6: 28 | G6: 31,250,000.00 | H6: 17,000,000.00
A7: 短期投资 | B7: 2 | E7: 应付票据 | F7: 29 | G7: 36,960,000.00 | H7: 18,610,000.00
A8: 应收票据 | B8: 3 | D8: 3,600,000.00 | E8: 应付账款 | F8: 30 | G8: 98,748,779.72 | H8: 109,174,716.35
A9: 预付账款 | B9: 4 | C9: 44,618,591.65 | D9: 16,077,682.17 | E9: 应付职工薪酬 | F9: 31 | G9: 592,537.10 | H9: 977,863.17
A10: 应收账款 | B10: 5 | C10: 67,725,879.49 | D10: 91,647,907.82 | E10: 应交税金 | F10: 32 | G10: 2,015,382.93 | H10: 367,900.76
A11: 其他应收款 | B11: 6 | C11: 99,041,013.08 | D11: 33,786,586.52 | E11: 预收账款 | F11: 33 | G11: 48,487,921.04 | H11: 25,939,680.00
A12: 存货 | B12: 7 | C12: 35,968,323.05 | D12: 30,505,824.64 | E12: 其他应付款 | F12: 34 | G12: 22,407,660.68 | H12: 15,012,150.97
A13: 待摊费用 | B13: 8 | C13: 500,000.00 | E13: 专项应付款 | F13: 35 | G13: 1,390,000.00 | H13: 1,720,000.00
A14: 一年内到期的长期债权投资 | B14: 9 | E14: 一年内到期的长期负债 | F14: 36
A15: 其它流动资产 | B15: 10 | E15: 其它流动负债 | F15: 37
A16: 流动资产合计 | B16: 11 | C16: 278,371,352.36 | D16: =SUM(D6:D15) -> 184,832,077.12 | E16: 流动负债合计 | F16: 38 | G16: 241,852,281.47 | H16: =SUM(H6:H15) -> 188,802,311.25
A17: 长期投资： | B17: 12 | E17: 长期负债： | F17: 39
A18: 长期股权投资 | B18: 13 | C18: 4,000,000.00 | D18: 30,605,000.00 | E18: 长期借款 | F18: 40
A19: 长期投资合计 | B19: 14 | C19: 4,000,000.00 | D19: =D18 -> 30,605,000.00 | E19: 长期应付款 | F19: 41
A20: 固定资产： | B20: 15 | E20: 负债合计 | F20: 42 | G20: 241,852,281.47 | H20: =H16 -> 188,802,311.25
A21: 固定资产原价 | B21: 16 | C21: 23,793,090.81 | D21: 40,998,018.57 | E21: 所有者权益（或股东权益)： | F21: 43
A22: 减：累计折旧 | B22: 17 | C22: 12,115,353.68 | D22: 13,690,815.45 | E22: 实收资本 | F22: 44 | G22: 13,333,300.00 | H22: 13,333,300.00
A23: 固定资产净值 | B23: 18 | C23: 11,677,737.13 | D23: =D21-D22 -> 27,307,203.12 | E23: 资本公积 | F23: 45 | G23: 50,006,594.10 | H23: 50,006,594.10
A24: 工程物资 | B24: 19 | F24: 46
A25: 在建工程 | B25: 20 | C25: 2,477,950.48 | D25: 9,945,553.20 | F25: 47
A26: 固定资产合计 | B26: 21 | C26: 14,155,687.61 | D26: =D25+D23 -> 37,252,756.32 | E26: 盈余公积 | F26: 48 | G26: 1,769,086.97 | H26: 2,708,997.28 | J26: 分红金额 | K26: 2,511,000.00
A27: 无形资产及其他资产： | B27: 22 | E27: 其中：法定公益金 | F27: 49
A28: 无形资产 | B28: 23 | C28: 37,824,661.44 | D28: 34,881,698.92 | E28: 未分配利润 | F28: 50 | G28: 27,390,438.87 | H28: 33,338,631.63 | J28: =H28-G28 -> 5,948,192.76
A29: 长期待摊费用 | B29: 24 | D29: 618,301.90 | E29: 归属于母公司所有者权益合计 | F29: 51 | J29: =J28-利润表!D20 -> -3,450,910.31
A30: 开发支出 | B30: 25 | E30: 少数股东权益 | F30: 52 | J30: =J29+K26 -> -939,910.31
A31: 商誉
A32: 无形资产及其他资产合计 | B32: 26 | C32: 37,824,661.44 | D32: =D29+D28+D26+D19 -> 103,357,757.14 | E32: 所有者权益(或股东权益)合计 | F32: 53 | G32: 92,499,419.94 | H32: =H28+H26+H23+H22 -> 99,387,523.01
A33: 资产总计 | B33: 27 | C33: 334,351,701.41 | D33: =D32+D16 -> 288,189,834.26 | E33: 负债和所有者权益(或股东权益)总计 | F33: 54 | G33: 334,351,701.41 | H33: =H32+H20 -> 288,189,834.26
C35: =C33-[1]Sheet1!$C$35 -> 0 | G35: =G33-C33 -> 0 | H35: =H33-D33 -> 0
E39: 现金周转天数=应收账款周转期-应付账款周转期+存货周转期 | H39: =H40+H42-H41 -> -30.87
E40: 应收账款周转天数 | G40: =360/应收账款周转率=平均应收账款×360天/销售收入 | H40: =360*(C10+D10)/2/利润表!D5 -> 180.80
E41: 应付账款周转天数 | G41: =360/应付账款周转率 | H41: =360/(利润表!D6/((G8+H8)/2)) -> 311.15
E42: 存货周转天数 | G42: =[360×（期初存货+期末存货）/2]/产品销售成本 | H42: =360*(C12+D12)/2/利润表!D6 -> 99.48

Sheet 利润表
A1: 利 润 表
A3: 编制单位:湖南江冶机电科技股份有限公司 | C3: =资产负债表!E3 -> 2023-12-31 | D3: 单位:元
A4: 项 目 | B4: 行数 | C4: 本月数 | D4: 本年累计数
A5: 一、主营业务收入 | B5: 1 | C5: 10,230,134.96 | D5: 158,665,196.43
A6: 减：主营业务成本 | B6: 2 | C6: 4,178,401.24 | D6: 120,284,068.20
A7: 主营业务税金及附加 | B7: 3 | C7: 41,646.91 | D7: 1,119,158.80
A8: 二、主营业务利润（亏损以“-”号填列) | B8: 4 | C8: =C5-C6-C7 -> 6,010,086.81 | D8: =D5-D6-D7 -> 37,261,969.43
A9: 加：其他业务利润（亏损以“-”号填列） | B9: 5
A10: 减：营业费用 | B10: 6 | C10: 1,023,833.04 | D10: 8,103,161.30
A11: 管理费用 | B11: 7 | C11: 1,765,667.22 | D11: 25,061,036.41
A12: 其中： 研发费用 | B12: 8 | C12: 773,116.93 | D12: 12,605,275.08
A13: 财务费用 | B13: 9 | C13: 12,977.45 | D13: -24,553.81
A14: 三、营业利润（亏损以“-”号填列） | B14: 10 | C14: =C8-C10-C11-C13 -> 3,207,609.10 | D14: =D8-D10-D11-D13 -> 4,122,325.53
A15: 加：投资收益（损失以“-”号填列） | B15: 11 | C15: 0.00 | D15: 772.14
A16: 营业外收入 | B16: 12 | C16: 667,018.04 | D16: 5,369,841.79
A17: 减：营业外支出 | B17: 13 | C17: 186.27 | D17: 112,288.04
A18: 四、利润总额（亏损总额以“-”号填列） | B18: 14 | C18: =C14+C15+C16-C17 -> 3,874,440.87 | D18: =D14+D15+D16-D17 -> 9,380,651.42
A19: 减：所得税 | B19: 15 | C19: 0.00 | D19: -18,451.65
A20: 五、净利润（净亏损以“-”号填列） | B20: 16 | C20: =C18-C19 -> 3,874,440.87 | D20: =D18-D19 -> 9,399,103.07

Sheet 现金流量表
A1: 现 金 流 量 表
D2: 会企03表
A3: 编制单位:湖南江冶机电科技股份有限公司 | C3: =资产负债表!E3 -> 2023-12-31 | D3: 单位：元
A4: 项 目 | B4: 行次 | C4: 本月数 | D4: 本年累计数
A5: 一、经营活动产生的现金流量： | B5: 1
A6: 销售商品、提供劳务收到的现金 | B6: 2 | C6: 5,860,482.75 | D6: 137,072,067.36
A7: 收到的税费返还 | B7: 3 | C7: 0.00 | D7: 881,711.76
A8: 收到的其他与经营活动有关的现金 | B8: 4 | C8: =25224143.92+1440000 -> 26,664,143.92 | D8: 252,697,513.10
A9: 现金流入小计 | B9: 5 | C9: =SUM(C6:C8) -> 32,524,626.67 | D9: =SUM(D6:D8) -> 390,651,292.22
A10: 购买商品、接受劳务支付的现金 | B10: 6 | C10: 9,328,522.75 | D10: 116,489,132.19
A11: 支付给职工以及为职工支付的现金 | B11: 7 | C11: 880,788.74 | D11: 11,065,485.41
A12: 支付的各项税费 | B12: 8 | C12: 416,482.32 | D12: 7,046,031.64
A13: 支付的其它与经营活动有关的现金 | B13: 9 | C13: =15557443.63 -> 15,557,443.63 | D13: 249,940,678.51
A14: 现金流出小计 | B14: 10 | C14: =SUM(C10:C13) -> 26,183,237.44 | D14: =SUM(D10:D13) -> 384,541,327.75
A15: 经营活动产生的现金流量净额 | B15: 11 | C15: =C9-C14 -> 6,341,389.23 | D15: =D9-D14 -> 6,109,964.47
A16: 二、投资活动产生的现金流量： | B16: 12
A17: 收回投资所收到的现金 | B17: 13 | C17: 0.00 | D17: =C17 -> 0.00
A18: 取得投资收益所收到的现金 | B18: 14 | C18: 0.00 | D18: 50,772.14
A19: 处置固定资产、无形资产和其他长期资产所收回的现金净额 | B19: 15 | D19: 0.00
A20: 收到的其他与投资活动有关的现金 | B20: 16 | D20: 0.00
A21: 现金流入小计 | B21: 17 | C21: =SUM(C17:C20) -> 0.00 | D21: =SUM(D17:D20) -> 50,772.14
A22: 购建固定资产、无形资产和其他长期资产所支付的现金 | B22: 18 | C22: 835,494.32 | D22: 9,468,394.60
A23: 投资所支付的现金 | B23: 19 | D23: =C23 -> 0.00
A24: 支付的其他与投资活动有关的现金 | B24: 20 | D24: =C24 -> 0.00
A25: 现金流出小计 | B25: 21 | C25: =SUM(C22:C24) -> 835,494.32 | D25: 10,303,888.92
A26: 投资活动产生的现金流量净额 | B26: 22 | C26: =C21-C25 -> -835,494.32 | D26: =D21-D25 -> -10,253,116.78
A27: 三、筹资活动产生的现金流量： | B27: 23
A28: 吸收投资所收到的现金 | B28: 24
A29: 借款所收到的现金 | B29: 25 | C29: 0.00 | D29: 58,000,000.00
A30: 收到的其他与筹资活动有关的现金 | B30: 26 | D30: 21,215.32
A31: 现金流入小计 | B31: 27 | C31: =SUM(C28:C30) -> 0.00 | D31: =SUM(D28:D30) -> 58,021,215.32
A32: 偿还债务所支付的现金 | B32: 28 | C32: 4,000,000.00 | D32: 72,250,000.00
A33: 分配股利、利润或偿付利息所支付的现金 | B33: 29 | C33: 56,683.34 | D33: 2,931,532.13
A34: 支付的其他与筹资活动有关的现金 | B34: 30 | D34: =C34 -> 0.00
A35: 现金流出小计 | B35: 31 | C35: =SUM(C32:C34) -> 4,056,683.34 | D35: =SUM(D32:D34) -> 75,181,532.13
A36: 筹资活动产生的现金流量净额 | B36: 32 | C36: =C31-C35 -> -4,056,683.34 | D36: =D31-D35 -> -17,160,316.81
A37: 四、汇率变动对现金的影响额 | B37: 33
A38: 五、现金及现金等价物净增加额 | B38: 34 | C38: =C15+C36+C26 -> 1,449,211.57 | D38: =D15+D36+D26 -> -21,303,469.12
A39: 六、现金及现金等价物净增加情况 | B39: 35
A40: 现金的期末余额 | B40: 36 | C40: =C41+C44 -> 9,214,075.97 | D40: =D44+D41 -> 9,214,075.97 | E40: =D40-C40 -> 0 | F40: =D40-资产负债表!D6 -> 0
A41: 减：现金的期初余额 | B41: 37 | C41: 7,764,864.40 | D41: 30,517,545.09
A42: 加：现金等价物的期末余额 | B42: 38
A43: 减：现金等价物的期初余额 | B43: 39
A44: 现金及现金等价物净增加额 | B44: 40 | C44: 1,449,211.57 | D44: -21,303,469.12
A45: 主管： | C45: 制表：
C47: =C44-C38 -> 0.00 | D47: =D44-D38 -> -0.00
